fUST/lending_fUST_20250718
["ID","MTS","AMOUNT","RATE_DAILY","PERIOD"]
[372948467,1752817847742,-160.0,0.00018368,2]
[372948468,1752817847752,-215.63268315,0.00018368,2]
[372948469,1752817847761,-214.4881157,0.00018368,2]
[372948470,1752817847770,-160.0,0.00018368,2]
[372948471,1752817847779,-525.75194068,0.00018368,2]
[372948472,1752817847788,-160.0,0.00018368,2]
[372948473,1752817847797,-160.0,0.00018368,2]
[372948474,1752817847806,-160.0,0.00018538,2]
[372948475,1752817847815,-482.18,0.00018629,2]
[372948476,1752817847825,-460.0,0.0001863,2]
[372948477,1752817847834,-460.0,0.0001863,2]
[372948478,1752817847847,-460.0,0.0001863,2]
[372948479,1752817847856,-460.0,0.0001863,2]
[372948480,1752817847865,-460.0,0.0001863,2]
[372948481,1752817847874,-460.0,0.0001863,2]
[372948482,1752817847884,-280.28,0.0001863,2]
[372948483,1752817847894,-514.77,0.0001863,2]
[372948484,1752817847903,-656.79,0.0001863,2]
[372948485,1752817847914,-460.0,0.0001863,2]
[372948486,1752817847926,-462.11,0.0001863,2]
[372948487,1752817847935,-460.0,0.0001863,2]
[372948488,1752817847944,-460.0,0.0001863,2]
[372948489,1752817847953,-460.0,0.0001863,2]
[372948491,1752817847963,-460.0,0.0001863,2]
[372948492,1752817847972,-460.0,0.0001863,2]
[372948494,1752817847982,-460.0,0.0001863,2]
[372948496,1752817847991,-570.12,0.0001863,2]
[372948498,1752817848000,-460.0,0.0001863,2]
[372948500,1752817848010,-460.0,0.0001863,2]
[372948502,1752817848020,-460.0,0.0001863,2]
[372948504,1752817848030,-460.0,0.0001863,2]
[372948506,1752817848039,-460.0,0.0001863,2]
[372948508,1752817848048,-460.0,0.0001863,2]
[372948510,1752817848057,-1950.61,0.0001863,2]
[372948512,1752817848067,-460.26,0.0001863,2]
[372948514,1752817848076,-460.0,0.0001863,2]
[372948516,1752817848085,-530.61,0.0001863,2]
[372948518,1752817848095,-460.0,0.0001863,2]
[372948520,1752817848105,-824.64,0.0001863,2]
[372948522,1752817848115,-460.0,0.0001863,2]
[372948524,1752817848125,-460.0,0.0001863,2]
[372948526,1752817848134,-1410.17,0.0001863,2]
[372948528,1752817848143,-1156.33,0.0001863,2]
[372948530,1752817848153,-2754.43,0.0001863,2]
[372948532,1752817848162,-1786.69,0.0001863,2]
[372948534,1752817848172,-460.0,0.0001863,2]
[372948536,1752817848182,-460.0,0.0001863,2]
[372948538,1752817848191,-688.88,0.0001863,2]
[372948540,1752817848201,-460.0,0.0001863,2]
[372948542,1752817848211,-479.92,0.0001863,2]
[372948544,1752817848222,-3471.04,0.0001863,2]
[372948546,1752817848232,-501.1,0.0001863,2]
[372948548,1752817848241,-473.09,0.0001863,2]
[372948550,1752817848251,-773.33,0.0001863,2]
[372948552,1752817848261,-715.09,0.0001863,2]
[372948554,1752817848271,-460.0,0.0001863,2]
[372948556,1752817848280,-2093.69,0.0001863,2]
[372948558,1752817848290,-745.39,0.0001863,2]
[372948560,1752817848300,-460.0,0.0001863,2]
[372948562,1752817848311,-998.27,0.0001863,2]
[372948568,1752817848356,-597.53,0.0001863,2]
[372948570,1752817848366,-460.0,0.0001863,2]
[372948572,1752817848375,-1220.96,0.0001863,2]
[372948573,1752817848385,-460.0,0.0001863,2]
[372948575,1752817848394,-460.0,0.0001863,2]
[372948577,1752817848404,-460.0,0.0001863,2]
[372948580,1752817848415,-261.88021253,0.0001863,2]
[372948582,1752817848425,-460.0,0.0001863,2]
[372948584,1752817848435,-460.0,0.0001863,2]
[372948585,1752817848445,-460.0,0.0001863,2]
[372948587,1752817848456,-460.0,0.0001863,2]
[372948589,1752817848466,-688.63,0.0001863,2]
[372948591,1752817848476,-460.0,0.0001863,2]
[372948593,1752817848487,-1356.91,0.0001863,2]
[372948595,1752817848497,-1968.92,0.0001863,2]
[372948597,1752817848506,-768.29,0.0001863,2]
[372948599,1752817848516,-460.0,0.0001863,2]
[372948601,1752817848526,-460.0,0.0001863,2]
[372948603,1752817848536,-601.93,0.0001863,2]
[372948605,1752817848545,-1340.21,0.0001863,2]
[372948607,1752817848555,-460.0,0.0001863,2]
[372948610,1752817848566,-3455.69,0.0001863,2]
[372948611,1752817848575,-302.78807257,0.000189,2]
[372948613,1752817848584,-302.78807257,0.000189,2]
[372948616,1752817848594,-482.18,0.00018903,2]
[372948618,1752817848604,-460.0,0.00018904,2]
[372948620,1752817848613,-460.0,0.00018904,2]
[372948622,1752817848623,-460.0,0.00018904,2]
[372948624,1752817848632,-460.0,0.00018904,2]
[372948626,1752817848641,-167.16,0.00018904,2]
[372948628,1752817848651,-460.0,0.00018904,2]
[372948630,1752817848660,-514.77,0.00018904,2]
[372948632,1752817848671,-656.79,0.00018904,2]
[372948634,1752817848680,-460.0,0.00018904,2]
[372948635,1752817848689,-462.11,0.00018904,2]
[372948637,1752817848699,-460.0,0.00018904,2]
[372948639,1752817848708,-460.0,0.00018904,2]
[372948642,1752817848717,-460.0,0.00018904,2]
[372948643,1752817848727,-460.0,0.00018904,2]
[372948645,1752817848736,-460.0,0.00018904,2]
[372948648,1752817848746,-496.02985063,0.00018904,2]
[372948649,1752817848756,-570.12,0.00018904,2]
[372948651,1752817848766,-460.0,0.00018904,2]
[372948653,1752817848775,-460.0,0.00018904,2]
[372948655,1752817848785,-460.0,0.00018904,2]
[372948658,1752817848794,-460.0,0.00018904,2]
[372948659,1752817848804,-460.0,0.00018904,2]
[372948661,1752817848814,-460.0,0.00018904,2]
[372948663,1752817848823,-1950.61,0.00018904,2]
[372948666,1752817848833,-460.26,0.00018904,2]
[372948667,1752817848843,-460.0,0.00018904,2]
[372948669,1752817848854,-530.61,0.00018904,2]
[372948671,1752817848863,-460.0,0.00018904,2]
[372948673,1752817848873,-824.64,0.00018904,2]
[372948675,1752817848882,-460.0,0.00018904,2]
[372948677,1752817848893,-460.0,0.00018904,2]
[372948679,1752817848902,-1410.17,0.00018904,2]
[372948681,1752817848911,-1156.33,0.00018904,2]
[372948683,1752817848922,-2754.43,0.00018904,2]
[372948685,1752817848935,-1786.69,0.00018904,2]
[372948687,1752817848944,-460.0,0.00018904,2]
[372948689,1752817848954,-460.0,0.00018904,2]
[372948691,1752817848963,-688.88,0.00018904,2]
[372948693,1752817848973,-460.0,0.00018904,2]
[372948695,1752817848983,-479.92,0.00018904,2]
[372948697,1752817848992,-3471.04,0.00018904,2]
[372948699,1752817849001,-501.1,0.00018904,2]
[372948702,1752817849011,-473.09,0.00018904,2]
[372948703,1752817849020,-773.33,0.00018904,2]
[372948705,1752817849030,-715.09,0.00018904,2]
[372948708,1752817849040,-460.0,0.00018904,2]
[372948710,1752817849050,-2093.69,0.00018904,2]
[372948711,1752817849059,-745.39,0.00018904,2]
[372948713,1752817849069,-460.0,0.00018904,2]
[372948715,1752817849079,-998.27,0.00018904,2]
[372948717,1752817849088,-597.53,0.00018904,2]
[372948719,1752817849098,-460.0,0.00018904,2]
[372948721,1752817849107,-1220.96,0.00018904,2]
[372948723,1752817849116,-460.0,0.00018904,2]
[372948725,1752817849126,-460.0,0.00018904,2]
[372948727,1752817849135,-460.0,0.00018904,2]
[372948729,1752817849143,-460.0,0.00018904,2]
[372948731,1752817849153,-460.0,0.00018904,2]
[372948733,1752817849162,-460.0,0.00018904,2]
[372948735,1752817849172,-460.0,0.00018904,2]
[372948737,1752817849182,-688.63,0.00018904,2]
[372948739,1752817849191,-460.0,0.00018904,2]
[372948741,1752817849201,-1356.91,0.00018904,2]
[372948743,1752817849210,-1968.92,0.00018904,2]
[372948745,1752817849219,-768.29,0.00018904,2]
[372948747,1752817849229,-460.0,0.00018904,2]
[372948749,1752817849238,-460.0,0.00018904,2]
[372948751,1752817849248,-601.93,0.00018904,2]
[372948753,1752817849258,-1340.21,0.00018904,2]
[372948755,1752817849267,-460.0,0.00018904,2]
[372948757,1752817849277,-3455.69,0.00018904,2]
[372948759,1752817849287,-404.29,0.00019069,2]
[372948761,1752817849296,-765.94962381,0.00019078,2]
[372948763,1752817849306,-320.0,0.00019086,2]
[372948765,1752817849315,-302.78807257,0.00019089,2]
[372948767,1752817849326,-302.78807257,0.00019089,2]
[372948769,1752817849336,-482.18,0.00019177,2]
[372948771,1752817849346,-219.23574932,0.00019178,2]
[372948773,1752817849355,-460.0,0.00019178,2]
[372948775,1752817849364,-270.15489704,0.00019178,2]
[372948777,1752817849373,-460.0,0.00019178,2]
[372948779,1752817849383,-460.0,0.00019178,2]
[372948781,1752817849392,-514.77,0.00019178,2]
[372948783,1752817849401,-656.79,0.00019178,2]
[372948785,1752817849410,-460.0,0.00019178,2]
[372948787,1752817849421,-462.11,0.00019178,2]
[372948789,1752817849430,-460.0,0.00019178,2]
[372948791,1752817849439,-460.0,0.00019178,2]
[372948793,1752817849448,-460.0,0.00019178,2]
[372948795,1752817849458,-460.0,0.00019178,2]
[372948797,1752817849467,-460.0,0.00019178,2]
[372948799,1752817849476,-570.12,0.00019178,2]
[372948801,1752817849486,-460.0,0.00019178,2]
[372948803,1752817849495,-460.0,0.00019178,2]
[372948805,1752817849504,-460.0,0.00019178,2]
[372948807,1752817849514,-460.0,0.00019178,2]
[372948809,1752817849523,-460.0,0.00019178,2]
[372948811,1752817849533,-460.0,0.00019178,2]
[372948813,1752817849543,-1950.61,0.00019178,2]
[372948815,1752817849552,-460.26,0.00019178,2]
[372948817,1752817849562,-460.0,0.00019178,2]
[372948819,1752817849573,-530.61,0.00019178,2]
[372948821,1752817849582,-460.0,0.00019178,2]
[372948823,1752817849593,-824.64,0.00019178,2]
[372948825,1752817849602,-460.0,0.00019178,2]
[372948827,1752817849612,-460.0,0.00019178,2]
[372948829,1752817849622,-1410.17,0.00019178,2]
[372948831,1752817849631,-1156.33,0.00019178,2]
[372948833,1752817849643,-2754.43,0.00019178,2]
[372948835,1752817849653,-1786.69,0.00019178,2]
[372948837,1752817849663,-460.0,0.00019178,2]
[372948839,1752817849673,-460.0,0.00019178,2]
[372948841,1752817849683,-688.88,0.00019178,2]
[372948843,1752817849693,-460.0,0.00019178,2]
[372948845,1752817849702,-479.92,0.00019178,2]
[372948847,1752817849712,-3471.04,0.00019178,2]
[372948849,1752817849722,-501.1,0.00019178,2]
[372948852,1752817849732,-473.09,0.00019178,2]
[372948854,1752817849742,-773.33,0.00019178,2]
[372948856,1752817849751,-715.09,0.00019178,2]
[372948858,1752817849760,-460.0,0.00019178,2]
[372948859,1752817849770,-2093.69,0.00019178,2]
[372948861,1752817849780,-745.39,0.00019178,2]
[372948864,1752817849793,-460.0,0.00019178,2]
[372948866,1752817849803,-998.27,0.00019178,2]
[372948868,1752817849812,-597.53,0.00019178,2]
[372948869,1752817849822,-460.0,0.00019178,2]
[372948872,1752817849831,-1220.96,0.00019178,2]
[372948874,1752817849841,-460.0,0.00019178,2]
[372948876,1752817849854,-460.0,0.00019178,2]
[372948878,1752817849864,-460.0,0.00019178,2]
[372948880,1752817849873,-460.0,0.00019178,2]
[372948882,1752817849883,-460.0,0.00019178,2]
[372948884,1752817849892,-460.0,0.00019178,2]
[372948886,1752817849902,-460.0,0.00019178,2]
[372948888,1752817849912,-688.63,0.00019178,2]
[372948890,1752817849924,-460.0,0.00019178,2]
[372948892,1752817849934,-1356.91,0.00019178,2]
[372948894,1752817849944,-1968.92,0.00019178,2]
[372948896,1752817849954,-768.29,0.00019178,2]
[372948898,1752817849964,-460.0,0.00019178,2]
[372948900,1752817849974,-460.0,0.00019178,2]
[372948902,1752817849984,-601.93,0.00019178,2]
[372948904,1752817849993,-1340.21,0.00019178,2]
[372948906,1752817850003,-460.0,0.00019178,2]
[372948908,1752817850012,-3455.69,0.00019178,2]
[372948910,1752817850022,-169.987809,0.00019178,2]
[372948912,1752817850031,-666.0,0.00019178,2]
[372948914,1752817850041,-302.78807257,0.00019278,2]
[372948916,1752817850050,-302.78807257,0.00019278,2]
[372948918,1752817850060,-587.0,0.00019285,2]
[372948920,1752817850069,-53549.22843716,0.00019329,2]
[372948922,1752817850078,-150.0,0.0001936,2]
[372948924,1752817850088,-482.18,0.00019451,2]
[372948926,1752817850097,-440.1,0.00019452,2]
[372948928,1752817850107,-460.0,0.00019452,2]
[372948930,1752817850116,-514.77,0.00019452,2]
[372948932,1752817850126,-656.79,0.00019452,2]
[372948934,1752817850136,-460.0,0.00019452,2]
[372948936,1752817850146,-462.11,0.00019452,2]
[372948938,1752817850155,-460.0,0.00019452,2]
[372948940,1752817850166,-460.0,0.00019452,2]
[372948942,1752817850176,-460.0,0.00019452,2]
[372948944,1752817850185,-460.0,0.00019452,2]
[372948946,1752817850194,-460.0,0.00019452,2]
[372948948,1752817850204,-570.12,0.00019452,2]
[372948950,1752817850213,-460.0,0.00019452,2]
[372948952,1752817850222,-460.0,0.00019452,2]
[372948954,1752817850232,-460.0,0.00019452,2]
[372948956,1752817850241,-460.0,0.00019452,2]
[372948958,1752817850251,-460.0,0.00019452,2]
[372948960,1752817850260,-460.0,0.00019452,2]
[372948962,1752817850269,-1950.61,0.00019452,2]
[372948964,1752817850279,-460.26,0.00019452,2]
[372948966,1752817850289,-460.0,0.00019452,2]
[372948968,1752817850299,-530.61,0.00019452,2]
[372948970,1752817850309,-460.0,0.00019452,2]
[372948971,1752817850318,-824.64,0.00019452,2]
[372948972,1752817850327,-460.0,0.00019452,2]
[372948973,1752817850337,-460.0,0.00019452,2]
[372948974,1752817850346,-1410.17,0.00019452,2]
[372948975,1752817850355,-1156.33,0.00019452,2]
[372948976,1752817850364,-2754.43,0.00019452,2]
[372948977,1752817850374,-1786.69,0.00019452,2]
[372948978,1752817850383,-460.0,0.00019452,2]
[372948979,1752817850392,-460.0,0.00019452,2]
[372948980,1752817850402,-688.88,0.00019452,2]
[372948982,1752817850413,-460.0,0.00019452,2]
[372948984,1752817850424,-479.92,0.00019452,2]
[372948986,1752817850434,-3471.04,0.00019452,2]
[372948988,1752817850444,-501.1,0.00019452,2]
[372948991,1752817850454,-473.09,0.00019452,2]
[372948993,1752817850464,-773.33,0.00019452,2]
[372948995,1752817850473,-715.09,0.00019452,2]
[372948997,1752817850483,-460.0,0.00019452,2]
[372948999,1752817850492,-2093.69,0.00019452,2]
[372949001,1752817850502,-745.39,0.00019452,2]
[372949003,1752817850512,-460.0,0.00019452,2]
[372949005,1752817850522,-998.27,0.00019452,2]
[372949007,1752817850531,-597.53,0.00019452,2]
[372949009,1752817850540,-460.0,0.00019452,2]
[372949011,1752817850550,-1220.96,0.00019452,2]
[372949013,1752817850559,-460.0,0.00019452,2]
[372949015,1752817850569,-460.0,0.00019452,2]
[372949017,1752817850579,-460.0,0.00019452,2]
[372949019,1752817850588,-460.0,0.00019452,2]
[372949021,1752817850598,-460.0,0.00019452,2]
[372949023,1752817850608,-460.0,0.00019452,2]
[372949025,1752817850618,-460.0,0.00019452,2]
[372949027,1752817850627,-688.63,0.00019452,2]
[372949029,1752817850636,-460.0,0.00019452,2]
[372949031,1752817850646,-1356.91,0.00019452,2]
[372949033,1752817850655,-1968.92,0.00019452,2]
[372949035,1752817850666,-768.29,0.00019452,2]
[372949037,1752817850676,-460.0,0.00019452,2]
[372949039,1752817850685,-460.0,0.00019452,2]
[372949041,1752817850696,-601.93,0.00019452,2]
[372949043,1752817850706,-1340.21,0.00019452,2]
[372949046,1752817850717,-460.0,0.00019452,2]
[372949048,1752817850726,-3455.69,0.00019452,2]
[372949050,1752817850736,-161.21538912,0.00019452,3]
[372949052,1752817850745,-302.78807257,0.00019467,2]
[372949054,1752817850755,-302.78807257,0.00019467,2]
[372949056,1752817850765,-2806.60928554,0.00019533,2]
[372949058,1752817850775,-302.63681467,0.00019656,2]
[372949060,1752817850784,-302.78807257,0.00019656,2]
[372949062,1752817850794,-482.18,0.00019725,2]
[372949064,1752817850804,-460.0,0.00019726,2]
[372949066,1752817850814,-514.77,0.00019726,2]
[372949068,1752817850823,-656.79,0.00019726,2]
[372949070,1752817850833,-460.0,0.00019726,2]
[372949072,1752817850842,-462.11,0.00019726,2]
[372949074,1752817850855,-460.0,0.00019726,2]
[372949076,1752817850865,-387.94412228,0.00019726,2]
[372949078,1752817850874,-460.0,0.00019726,2]
[372949080,1752817850885,-460.0,0.00019726,2]
[372949082,1752817850896,-460.0,0.00019726,2]
[372949084,1752817850905,-570.12,0.00019726,2]
[372949087,1752817850916,-328.35,0.00019726,2]
[372949088,1752817850926,-460.0,0.00019726,2]
[372949091,1752817850936,-523.7,0.00019726,2]
[372949093,1752817850948,-460.0,0.00019726,2]
[372949095,1752817850958,-460.0,0.00019726,2]
[372949097,1752817850967,-460.0,0.00019726,2]
[372949099,1752817850977,-1950.61,0.00019726,2]
[372949101,1752817850987,-460.26,0.00019726,2]
[372949103,1752817850998,-460.0,0.00019726,2]
[372949105,1752817851008,-530.61,0.00019726,2]
[372949107,1752817851017,-460.0,0.00019726,2]
[372949109,1752817851027,-824.64,0.00019726,2]
[372949111,1752817851036,-460.0,0.00019726,2]
[372949113,1752817851046,-460.0,0.00019726,2]
[372949115,1752817851056,-1410.17,0.00019726,2]
[372949118,1752817851066,-1156.33,0.00019726,2]
[372949120,1752817851076,-2754.43,0.00019726,2]
[372949122,1752817851085,-1786.69,0.00019726,2]
[372949124,1752817851096,-460.0,0.00019726,2]
[372949126,1752817851107,-460.0,0.00019726,2]
[372949128,1752817851116,-688.88,0.00019726,2]
[372949130,1752817851125,-460.0,0.00019726,2]
[372949132,1752817851135,-479.92,0.00019726,2]
[372949134,1752817851145,-3471.04,0.00019726,2]
[372949136,1752817851154,-501.1,0.00019726,2]
[372949138,1752817851166,-473.09,0.00019726,2]
[372949140,1752817851175,-773.33,0.00019726,2]
[372949142,1752817851185,-715.09,0.00019726,2]
[372949144,1752817851195,-460.0,0.00019726,2]
[372949146,1752817851205,-2093.69,0.00019726,2]
[372949148,1752817851214,-745.39,0.00019726,2]
[372949150,1752817851223,-460.0,0.00019726,2]
[372949152,1752817851233,-998.27,0.00019726,2]
[372949155,1752817851243,-597.53,0.00019726,2]
[372949157,1752817851252,-460.0,0.00019726,2]
[372949159,1752817851262,-1220.96,0.00019726,2]
[372949161,1752817851271,-460.0,0.00019726,2]
[372949163,1752817851280,-460.0,0.00019726,2]
[372949165,1752817851290,-460.0,0.00019726,2]
[372949167,1752817851299,-460.0,0.00019726,2]
[372949169,1752817851308,-460.0,0.00019726,2]
[372949171,1752817851318,-460.0,0.00019726,2]
[372949173,1752817851327,-460.0,0.00019726,2]
[372949175,1752817851337,-688.63,0.00019726,2]
[372949177,1752817851347,-460.0,0.00019726,2]
[372949179,1752817851358,-1356.91,0.00019726,2]
[372949181,1752817851366,-1968.92,0.00019726,2]
[372949183,1752817851376,-768.29,0.00019726,2]
[372949185,1752817851386,-460.0,0.00019726,2]
[372949187,1752817851396,-460.0,0.00019726,2]
[372949189,1752817851406,-601.93,0.00019726,2]
[372949191,1752817851417,-1340.21,0.00019726,2]
[372949194,1752817851427,-460.0,0.00019726,2]
[372949196,1752817851436,-3455.69,0.00019726,2]
[372949198,1752817851446,-454.18210886,0.00019845,4]
[372949200,1752817851456,-500.0,0.00019874,2]
[372949202,1752817851465,-482.18,0.00019999,2]
[372949204,1752817851475,-460.0,0.0002,2]
[372949206,1752817851485,-514.77,0.0002,2]
[372949208,1752817851495,-656.79,0.0002,2]
[372949210,1752817851505,-460.0,0.0002,2]
[372949212,1752817851514,-462.11,0.0002,2]
[372949214,1752817851524,-460.0,0.0002,2]
[372949216,1752817851534,-460.0,0.0002,2]
[372949218,1752817851543,-460.0,0.0002,2]
[372949220,1752817851553,-460.0,0.0002,2]
[372949222,1752817851563,-570.12,0.0002,2]
[372949224,1752817851572,-460.0,0.0002,2]
[372949226,1752817851582,-460.0,0.0002,2]
[372949228,1752817851591,-460.0,0.0002,2]
[372949230,1752817851600,-221.3355567,0.0002,2]
[372949232,1752817851610,-1950.61,0.0002,2]
[372949234,1752817851620,-460.26,0.0002,2]
[372949236,1752817851629,-460.0,0.0002,2]
[372949238,1752817851639,-530.61,0.0002,2]
[372949240,1752817851649,-460.0,0.0002,2]
[372949242,1752817851658,-824.64,0.0002,2]
[372949244,1752817851670,-460.0,0.0002,2]
[372949247,1752817851680,-460.0,0.0002,2]
[372949249,1752817851690,-1410.17,0.0002,2]
[372949251,1752817851700,-1156.33,0.0002,2]
[372949253,1752817851710,-2754.43,0.0002,2]
[372949255,1752817851720,-1786.69,0.0002,2]
[372949257,1752817851730,-460.0,0.0002,2]
[372949259,1752817851740,-460.0,0.0002,2]
[372949261,1752817851750,-688.88,0.0002,2]
[372949263,1752817851760,-460.0,0.0002,2]
[372949265,1752817851770,-479.92,0.0002,2]
[372949268,1752817851781,-3471.04,0.0002,2]
[372949282,1752817851908,-501.1,0.0002,2]
[372949284,1752817851920,-473.09,0.0002,2]
[372949286,1752817851930,-773.33,0.0002,2]
[372949288,1752817851940,-715.09,0.0002,2]
[372949290,1752817851949,-460.0,0.0002,2]
[372949292,1752817851958,-2093.69,0.0002,2]
[372949294,1752817851968,-745.39,0.0002,2]
[372949296,1752817851977,-460.0,0.0002,2]
[372949298,1752817851987,-998.27,0.0002,2]
[372949300,1752817851996,-597.53,0.0002,2]
[372949302,1752817852006,-235.04,0.0002,2]
[372949304,1752817852015,-1220.96,0.0002,2]
[372949306,1752817852025,-460.0,0.0002,2]
[372949308,1752817852034,-460.0,0.0002,2]
[372949310,1752817852043,-460.0,0.0002,2]
[372949312,1752817852053,-460.0,0.0002,2]
[372949314,1752817852062,-460.0,0.0002,2]
[372949316,1752817852071,-460.0,0.0002,2]
[372949318,1752817852081,-460.0,0.0002,2]
[372949320,1752817852090,-688.63,0.0002,2]
[372949322,1752817852099,-460.0,0.0002,2]
[372949324,1752817852108,-1356.91,0.0002,2]
[372949326,1752817852117,-1968.92,0.0002,2]
[372949328,1752817852127,-768.29,0.0002,2]
[372949330,1752817852136,-460.0,0.0002,2]
[372949332,1752817852145,-460.0,0.0002,2]
[372949334,1752817852153,-601.93,0.0002,2]
[372949336,1752817852162,-1340.21,0.0002,2]
[372949338,1752817852174,-460.0,0.0002,2]
[372949340,1752817852183,-3455.69,0.0002,2]
[372949342,1752817852192,-304.63442,0.00020034,4]
[372949344,1752817852202,-306.162725,0.00020187,2]
[372949346,1752817852211,-482.18,0.00020273,2]
[372949348,1752817852221,-460.0,0.00020273,2]
[372949350,1752817852230,-514.77,0.00020273,2]
[372949352,1752817852240,-656.79,0.00020273,2]
[372949354,1752817852249,-460.0,0.00020273,2]
[372949356,1752817852259,-462.11,0.00020273,2]
[372949358,1752817852269,-460.0,0.00020273,2]
[372949360,1752817852278,-460.0,0.00020273,2]
[372949362,1752817852288,-460.0,0.00020273,2]
[372949364,1752817852298,-460.0,0.00020273,2]
[372949366,1752817852308,-570.12,0.00020273,2]
[372949368,1752817852317,-460.0,0.00020273,2]
[372949370,1752817852326,-460.0,0.00020273,2]
[372949372,1752817852336,-460.0,0.00020273,2]
[372949374,1752817852345,-1950.61,0.00020273,2]
[372949376,1752817852355,-460.26,0.00020273,2]
[372949378,1752817852364,-460.0,0.00020273,2]
[372949380,1752817852373,-530.61,0.00020273,2]
[372949382,1752817852383,-460.0,0.00020273,2]
[372949384,1752817852392,-824.64,0.00020273,2]
[372949386,1752817852402,-460.0,0.00020273,2]
[372949388,1752817852411,-460.0,0.00020273,2]
[372949390,1752817852423,-1410.17,0.00020273,2]
[372949392,1752817852433,-1156.33,0.00020273,2]
[372949394,1752817852442,-2754.43,0.00020273,2]
[372949396,1752817852451,-1786.69,0.00020273,2]
[372949398,1752817852460,-460.0,0.00020273,2]
[372949400,1752817852470,-460.0,0.00020273,2]
[372949402,1752817852479,-688.88,0.00020273,2]
[372949404,1752817852489,-460.0,0.00020273,2]
[372949406,1752817852498,-479.92,0.00020273,2]
[372949408,1752817852507,-3471.04,0.00020273,2]
[372949410,1752817852518,-501.1,0.00020273,2]
[372949411,1752817852527,-473.09,0.00020273,2]
[372949414,1752817852537,-773.33,0.00020273,2]
[372949415,1752817852547,-715.09,0.00020273,2]
[372949417,1752817852557,-460.0,0.00020273,2]
[372949419,1752817852566,-2093.69,0.00020273,2]
[372949422,1752817852576,-745.39,0.00020273,2]
[372949423,1752817852586,-460.0,0.00020273,2]
[372949425,1752817852595,-998.27,0.00020273,2]
[372949428,1752817852604,-597.53,0.00020273,2]
[372949429,1752817852613,-1220.96,0.00020273,2]
[372949432,1752817852623,-460.0,0.00020273,2]
[372949433,1752817852632,-460.0,0.00020273,2]
[372949435,1752817852641,-460.0,0.00020273,2]
[372949437,1752817852650,-460.0,0.00020273,2]
[372949440,1752817852660,-460.0,0.00020273,2]
[372949442,1752817852671,-460.0,0.00020273,2]
[372949443,1752817852680,-460.0,0.00020273,2]
[372949445,1752817852690,-688.63,0.00020273,2]
[372949447,1752817852699,-460.0,0.00020273,2]
[372949450,1752817852709,-1356.91,0.00020273,2]
[372949452,1752817852719,-1968.92,0.00020273,2]
[372949454,1752817852729,-768.29,0.00020273,2]
[372949456,1752817852739,-460.0,0.00020273,2]